Workbook

Sheet 公示
A1: 公司名称 | B1: 岗位（层级） | C1: 需求人数 | D1: 排 名 | E1: 姓 名 | F1: 卷面成绩 | G1: 按百分制折算成绩 | H1: 是否入围面试
A2: 南平武夷文化旅游投资开发有限公司 | B2: 综合部 业务员 | C2: 1 | D2: 1 | E2: 王如懿 | F2: 102.5 | G2: =$F2/1.5 -> 68.33 | H2: 是
D3: 2 | E3: 伍伊帆 | F3: 88 | G3: 58.67 | H3: 是
D4: 3 | E4: 吴荧稀 | F4: 86.5 | G4: 57.67 | H4: 是
D5: 4 | E5: 郑晓倩 | F5: 85 | G5: 56.67 | H5: 是
D6: 4 | E6: 罗鑫杰 | F6: 85 | G6: 56.67 | H6: 是
D7: 6 | E7: 占烨倩 | F7: 81.5 | G7: 54.33 | H7: 是
D8: 7 | E8: 钟盼 | F8: 80.5 | G8: 53.67 | H8: 否
D9: 8 | E9: 彭秋艳 | F9: 78.5 | G9: 52.33 | H9: 否
D10: 9 | E10: 蔡惠婷 | F10: 71 | G10: 47.33 | H10: 否
D11: 缺考 | E11: 郑艺 | F11: 0 | G11: 0 | H11: 否
A12: 南平武夷文化旅游投资开发有限公司 | B12: 规划投资部 业务员 | C12: 1 | D12: 1 | E12: 李真 | F12: 102.5 | G12: =$F12/1.5 -> 68.33 | H12: 是
D13: 2 | E13: 张亚飞 | F13: 100 | G13: 66.67 | H13: 是
D14: 3 | E14: 吴华俊 | F14: 97.5 | G14: 65 | H14: 是
D15: 4 | E15: 黄荣彪 | F15: 95 | G15: 63.33 | H15: 是
D16: 5 | E16: 林翰诚 | F16: 90 | G16: 60 | H16: 是
D17: 6 | E17: 郑路涛 | F17: 88 | G17: 58.67 | H17: 是
D18: 7 | E18: 彭钟豪 | F18: 87 | G18: 58 | H18: 否
D19: 8 | E19: 许雪玉 | F19: 86.5 | G19: 57.67 | H19: 否
D20: 9 | E20: 张燕华 | F20: 86 | G20: 57.33 | H20: 否
D21: 10 | E21: 王之更 | F21: 83 | G21: 55.33 | H21: 否
D22: 11 | E22: 李文萍 | F22: 82.5 | G22: 55 | H22: 否
D23: 12 | E23: 左文龙 | F23: 81.5 | G23: 54.33 | H23: 否
D24: 13 | E24: 肖勇强 | F24: 79.5 | G24: 53 | H24: 否
D25: 14 | E25: 郭双 | F25: 78 | G25: 52 | H25: 否
D26: 15 | E26: 应婷 | F26: 77.5 | G26: 51.67 | H26: 否
D27: 16 | E27: 魏思和 | F27: 74.5 | G27: 49.67 | H27: 否
D28: 缺考 | E28: 陈祖泷 | F28: 0 | G28: 0 | H28: 否
D29: 缺考 | E29: 苏杰 | F29: 0 | G29: 0 | H29: 否
D30: 缺考 | E30: 于佳民 | F30: 0 | G30: 0 | H30: 否
D31: 缺考 | E31: 刘智盛 | F31: 0 | G31: 0 | H31: 否
D32: 缺考 | E32: 薛宏敏 | F32: 0 | G32: 0 | H32: 否
D33: 缺考 | E33: 陈宇微 | F33: 0 | G33: 0 | H33: 否
D34: 缺考 | E34: 潘展晴 | F34: 0 | G34: 0 | H34: 否
D35: 缺考 | E35: 李静怡 | F35: 0 | G35: 0 | H35: 否
A36: 南平武夷文化旅游投资开发有限公司 | B36: 运营优化部 业务员 | C36: 1 | D36: 1 | E36: 余美琳 | F36: 104 | G36: =$F36/1.5 -> 69.33 | H36: 是
D37: 2 | E37: 吴温翔 | F37: 94.5 | G37: 63 | H37: 是
D38: 3 | E38: 黄文菁 | F38: 93.5 | G38: 62.33 | H38: 是
D39: 4 | E39: 陈海巍 | F39: 92.5 | G39: 61.67 | H39: 是
D40: 5 | E40: 林光曜 | F40: 90 | G40: 60 | H40: 是
D41: 5 | E41: 王一凡 | F41: 90 | G41: 60 | H41: 是
D42: 5 | E42: 周斯杰 | F42: 90 | G42: 60 | H42: 是
D43: 8 | E43: 林嘉威 | F43: 88 | G43: 58.67 | H43: 否
D44: 9 | E44: 叶福林 | F44: 87 | G44: 58 | H44: 否
D45: 10 | E45: 刘晓萌 | F45: 85.5 | G45: 57 | H45: 否
D46: 11 | E46: 颜紫莹 | F46: 85 | G46: 56.67 | H46: 否
D47: 12 | E47: 范虹艺 | F47: 83 | G47: 55.33 | H47: 否
D48: 13 | E48: 叶诗荧 | F48: 79 | G48: 52.67 | H48: 否
D49: 缺考 | E49: 杨文倩 | F49: 0 | G49: 0 | H49: 否
D50: 缺考 | E50: 陈丽淇 | F50: 0 | G50: 0 | H50: 否
D51: 缺考 | E51: 方羽婷 | F51: 0 | G51: 0 | H51: 否
D52: 缺考 | E52: 王一鸣 | F52: 0 | G52: 0 | H52: 否
D53: 缺考 | E53: 吴婉莹 | F53: 0 | G53: 0 | H53: 否
D54: 缺考 | E54: 许耀贵 | F54: 0 | G54: 0 | H54: 否
D55: 缺考 | E55: 罗嘉伟 | F55: 0 | G55: 0 | H55: 否
D56: 缺考 | E56: 魏浩龙 | F56: 0 | G56: 0 | H56: 否
D57: 缺考 | E57: 叶敏 | F57: 0 | G57: 0 | H57: 否
A58: 武夷山朱子文化发展有限公司 | B58: 综合部 副经理 | C58: 1 | D58: 1 | E58: 叶礼旭 | F58: 98.5 | G58: =$F58/1.5 -> 65.67 | H58: 是
D59: 2 | E59: 杨远丽 | F59: 90.5 | G59: 60.33 | H59: 是
D60: 3 | E60: 徐丽丽 | F60: 86 | G60: 57.33 | H60: 是
D61: 4 | E61: 李锦屹 | F61: 81 | G61: 54 | H61: 是
D62: 5 | E62: 赵海云 | F62: 78.5 | G62: 52.33 | H62: 是
D63: 6 | E63: 俞志媛 | F63: 72.5 | G63: 48.33 | H63: 是
D64: 7 | E64: 王玲 | F64: 70.5 | G64: 47 | H64: 否
D65: 缺考 | E65: 李脆红 | F65: 0 | G65: 0 | H65: 否
D66: 缺考 | E66: 李翔 | F66: 0 | G66: 0 | H66: 否
D67: 缺考 | E67: 江艳 | F67: 0 | G67: 0 | H67: 否
D68: 缺考 | E68: 张华忠 | F68: 0 | G68: 0 | H68: 否
D69: 缺考 | E69: 张清杰 | F69: 0 | G69: 0 | H69: 否
A70: 武夷山朱子文化发展有限公司 | B70: 财务部 业务员 | C70: 1 | D70: 1 | E70: 张珑 | F70: 89 | G70: =$F70/1.5 -> 59.33 | H70: 是
D71: 2 | E71: 许晓萍 | F71: 82 | G71: =$F71/1.5 -> 54.67 | H71: 是
D72: 3 | E72: 周庆慧 | F72: 75.5 | G72: =$F72/1.5 -> 50.33 | H72: 是
D73: 缺考 | E73: 郑锦淅 | F73: 0 | G73: 0 | H73: 否
D74: 缺考 | E74: 孙义珍 | F74: 0 | G74: 0 | H74: 否
A75: 武夷山朱子文化发展有限公司 | B75: 运营管理部 副经理 | C75: 1 | D75: 1 | E75: 叶颖杰 | F75: 87.5 | G75: =$F75/1.5 -> 58.33 | H75: 是
D76: 1 | E76: 张正魁 | F76: 87.5 | G76: =$F76/1.5 -> 58.33 | H76: 是
D77: 3 | E77: 钟凌鹂 | F77: 84.5 | G77: =$F77/1.5 -> 56.33 | H77: 是
D78: 4 | E78: 吴凯 | F78: 70.5 | G78: =$F78/1.5 -> 47 | H78: 是
D79: 缺考 | E79: 张俊麟 | F79: 0 | G79: 0 | H79: 否
D80: 缺考 | E80: 王海涛 | F80: 0 | G80: 0 | H80: 否
D81: 缺考 | E81: 郑毅珍 | F81: 0 | G81: 0 | H81: 否
D82: 缺考 | E82: 陈馨宇 | F82: 0 | G82: 0 | H82: 否
D83: 缺考 | E83: 陈雅静 | F83: 0 | G83: 0 | H83: 否
A84: 武夷山朱子文化发展有限公司 | B84: 工程部 业务员 | C84: 1 | D84: 1 | E84: 陈洁清 | F84: 104.5 | G84: =$F84/1.5 -> 69.67 | H84: 是
D85: 2 | E85: 詹建伟 | F85: 99 | G85: 66 | H85: 是
D86: 3 | E86: 吴博捷 | F86: 91 | G86: 60.67 | H86: 是
D87: 4 | E87: 黄慧娟 | F87: 87.5 | G87: 58.33 | H87: 是
D88: 5 | E88: 陈瑾 | F88: 84.5 | G88: 56.33 | H88: 是
D89: 6 | E89: 官俊杰 | F89: 71.5 | G89: 47.67 | H89: 是
D90: 7 | E90: 郑仕杰 | F90: 56.5 | G90: 37.67 | H90: 否
D91: 缺考 | E91: 范志明 | F91: 0 | G91: 0 | H91: 否
D92: 缺考 | E92: 郑火光 | F92: 0 | G92: 0 | H92: 否
D93: 缺考 | E93: 吴继斌 | F93: 0 | G93: 0 | H93: 否
D94: 缺考 | E94: 陈艺菡 | F94: 0 | G94: 0 | H94: 否
A95: 福建省武夷山旅行社有限公司 | B95: 副总经理 | C95: 1 | D95: 1 | E95: 包陈慜 | F95: 98.5 | G95: =$F95/1.5 -> 65.67 | H95: 是
D96: 2 | E96: 陈祺 | F96: 97 | G96: 64.67 | H96: 是
D97: 3 | E97: 陈贵涛 | F97: 94 | G97: 62.67 | H97: 是
D98: 4 | E98: 唐菠 | F98: 87.5 | G98: 58.33 | H98: 是
D99: 5 | E99: 刘斌 | F99: 82 | G99: 54.67 | H99: 是
D100: 5 | E100: 徐亮 | F100: 82 | G100: 54.67 | H100: 是
D101: 7 | E101: 张乐城 | F101: 77 | G101: 51.33 | H101: 否
D102: 缺考 | E102: 吴矜 | F102: 0 | G102: 0 | H102: 否
A103: 福建省武夷山旅行社有限公司 | B103: 策划部 业务员 | C103: 1 | D103: 1 | E103: 黄讷 | F103: 104.5 | G103: =$F103/1.5 -> 69.67 | H103: 是
D104: 2 | E104: 黄琪 | F104: 95 | G104: 63.33 | H104: 是
D105: 3 | E105: 庄学玲 | F105: 91.5 | G105: 61 | H105: 是
D106: 4 | E106: 黄敏 | F106: 88.5 | G106: 59 | H106: 是
D107: 5 | E107: 杨微 | F107: 88 | G107: 58.67 | H107: 是
D108: 5 | E108: 姜静雯 | F108: 88 | G108: 58.67 | H108: 是
D109: 7 | E109: 高恒 | F109: 87.5 | G109: 58.33 | H109: 否
D110: 7 | E110: 陈清 | F110: 87.5 | G110: 58.33 | H110: 否
D111: 9 | E111: 范凯暄 | F111: 86.5 | G111: 57.67 | H111: 否
D112: 10 | E112: 朱立菁 | F112: 86 | G112: 57.33 | H112: 否
D113: 10 | E113: 林华珍 | F113: 86 | G113: 57.33 | H113: 否
D114: 12 | E114: 陈思宇 | F114: 85.5 | G114: 57 | H114: 否
D115: 13 | E115: 邓嘉豪 | F115: 84.5 | G115: 56.33 | H115: 否
D116: 14 | E116: 丁雪 | F116: 84 | G116: 56 | H116: 否
D117: 15 | E117: 王祥龙 | F117: 82.5 | G117: 55 | H117: 否
D118: 16 | E118: 廖祥辉 | F118: 81 | G118: 54 | H118: 否
D119: 17 | E119: 彭雅琴 | F119: 80.5 | G119: 53.67 | H119: 否
D120: 17 | E120: 张佳慧 | F120: 80.5 | G120: 53.67 | H120: 否
D121: 19 | E121: 胡永隆 | F121: 77.5 | G121: 51.67 | H121: 否
D122: 20 | E122: 林叶雄 | F122: 77 | G122: 51.33 | H122: 否
D123: 21 | E123: 康金浩 | F123: 73 | G123: 48.67 | H123: 否
D124: 缺考 | E124: 陈其奋 | F124: 0 | G124: 0 | H124: 否
D125: 缺考 | E125: 陈韵铃 | F125: 0 | G125: 0 | H125: 否
D126: 缺考 | E126: 吴培亮 | F126: 0 | G126: 0 | H126: 否
D127: 缺考 | E127: 王菁 | F127: 0 | G127: 0 | H127: 否
D128: 缺考 | E128: 陈忱 | F128: 0 | G128: 0 | H128: 否
D129: 缺考 | E129: 徐高旺 | F129: 0 | G129: 0 | H129: 否
A130: 福建省南平市兴南资本运营服务有限公司（南平武夷文旅研究院有限公司） | B130: 综合部 副经理 | C130: 1 | D130: 1 | E130: 严静 | F130: 101.5 | G130: =$F130/1.5 -> 67.67 | H130: 是
D131: 2 | E131: 张荣培 | F131: 98 | G131: 65.33 | H131: 是
D132: 3 | E132: 卢靖 | F132: 93.5 | G132: 62.33 | H132: 是
D133: 4 | E133: 阴忠旭 | F133: 90.5 | G133: 60.33 | H133: 是
D134: 5 | E134: 钟炳源 | F134: 88.5 | G134: 59 | H134: 是
D135: 6 | E135: 张丽 | F135: 86 | G135: 57.33 | H135: 是
D136: 7 | E136: 范雯雯 | F136: 84 | G136: 56 | H136: 否
D137: 8 | E137: 陈灵 | F137: 80.5 | G137: 53.67 | H137: 否
D138: 9 | E138: 李星星 | F138: 79.5 | G138: 53 | H138: 否
D139: 10 | E139: 赖章航 | F139: 78.5 | G139: 52.33 | H139: 否
D140: 11 | E140: 彭伊阳 | F140: 78 | G140: 52 | H140: 否
D141: 12 | E141: 罗芬 | F141: 66.5 | G141: 44.33 | H141: 否
D142: 缺考 | E142: 彭晓芳 | F142: 0 | G142: 0 | H142: 否
D143: 缺考 | E143: 徐小玲 | F143: 0 | G143: 0 | H143: 否
D144: 缺考 | E144: 张鉴 | F144: 0 | G144: 0 | H144: 否
A145: 福建省南平市兴南资本运营服务有限公司（南平武夷文旅研究院有限公司） | B145: 新媒体运营部 副经理 | C145: 1 | D145: 1 | E145: 陈绍琳 | F145: 96 | G145: =$F145/1.5 -> 64 | H145: 是
D146: 2 | E146: 林梦琳 | F146: 91 | G146: 60.67 | H146: 是
D147: 3 | E147: 林智康 | F147: 90.5 | G147: 60.33 | H147: 是
D148: 4 | E148: 胡心尔 | F148: 90 | G148: 60 | H148: 是
D149: 5 | E149: 施龙斌 | F149: 89.5 | G149: 59.67 | H149: 是
D150: 6 | E150: 范林仪 | F150: 87.5 | G150: 58.33 | H150: 是
D151: 7 | E151: 张嘉昕 | F151: 84 | G151: 56 | H151: 否
D152: 8 | E152: 许昌梅 | F152: 75 | G152: 50 | H152: 否
D153: 缺考 | E153: 詹兴宇 | F153: 0 | G153: 0 | H153: 否
A154: 福建省南平市兴南资本运营服务有限公司（南平武夷文旅研究院有限公司） | B154: 智慧文旅研究中心 业务员 | C154: 1 | D154: 1 | E154: 王成涵 | F154: 91 | G154: =$F154/1.5 -> 60.67 | H154: 是
D155: 2 | E155: 魏俊鑫 | F155: 87.5 | G155: 58.33 | H155: 是
D156: 3 | E156: 陈艳芳 | F156: 86.5 | G156: 57.67 | H156: 是
D157: 4 | E157: 叶玉忺 | F157: 84 | G157: 56 | H157: 是
D158: 5 | E158: 余宜靓 | F158: 78.5 | G158: 52.33 | H158: 是
D159: 6 | E159: 蔡红丽 | F159: 73 | G159: 48.67 | H159: 是
D160: 7 | E160: 傅成捷 | F160: 67.5 | G160: 45 | H160: 否
A161: 南平市兴南职业技能培训学校有限公司 | B161: 教育培训部 副经理 | C161: 1 | D161: 1 | E161: 李可成 | F161: 97 | G161: 64.67 | H161: 是
D162: 2 | E162: 陈心悦 | F162: 93.5 | G162: 62.33 | H162: 是
D163: 3 | E163: 刘康 | F163: 91.5 | G163: 61 | H163: 是
D164: 4 | E164: 陈林颖 | F164: 91 | G164: 60.67 | H164: 是
D165: 5 | E165: 孔明葳 | F165: 84 | G165: 56 | H165: 是
D166: 6 | E166: 周草 | F166: 80.5 | G166: 53.67 | H166: 是
D167: 7 | E167: 孙孝萍 | F167: 79.5 | G167: 53 | H167: 否
D168: 8 | E168: 黄梦璐 | F168: 79 | G168: 52.67 | H168: 否
D169: 缺考 | E169: 章沁 | F169: 0 | G169: 0 | H169: 否
D170: 缺考 | E170: 贺玉红 | F170: 0 | G170: 0 | H170: 否
A171: 福建大武夷研学产业发展有限公司 | B171: 综合部 业务员 | C171: 1 | D171: 1 | E171: 肖偲雅 | F171: 101.5 | G171: =$F171/1.5 -> 67.67 | H171: 是
D172: 2 | E172: 李晨光 | F172: 98.5 | G172: 65.67 | H172: 是
D173: 3 | E173: 张鑫灵 | F173: 97 | G173: 64.67 | H173: 是
D174: 4 | E174: 王晓燕 | F174: 94 | G174: 62.67 | H174: 是
D175: 5 | E175: 黄伟 | F175: 93.5 | G175: 62.33 | H175: 是
D176: 6 | E176: 王丽花 | F176: 93 | G176: 62 | H176: 是
D177: 7 | E177: 张玉华 | F177: 91.5 | G177: 61 | H177: 否
D178: 8 | E178: 林婉鹃 | F178: 88.5 | G178: 59 | H178: 否
D179: 9 | E179: 凌姝雯 | F179: 87.5 | G179: 58.33 | H179: 否
D180: 10 | E180: 陈思敏 | F180: 86.5 | G180: 57.67 | H180: 否
D181: 11 | E181: 吴文凯 | F181: 86 | G181: 57.33 | H181: 否
D182: 12 | E182: 卢霖英 | F182: 85.5 | G182: 57 | H182: 否
D183: 13 | E183: 张钰莹 | F183: 84.5 | G183: 56.33 | H183: 否
D184: 14 | E184: 蔡超 | F184: 84 | G184: 56 | H184: 否
D185: 14 | E185: 裴天宇 | F185: 84 | G185: 56 | H185: 否
D186: 14 | E186: 罗丽娟 | F186: 84 | G186: 56 | H186: 否
D187: 17 | E187: 黄凯芹 | F187: 81.5 | G187: 54.33 | H187: 否
D188: 18 | E188: 金宁菲 | F188: 80 | G188: 53.33 | H188: 否
D189: 19 | E189: 詹珊珊 | F189: 79.5 | G189: 53 | H189: 否
D190: 20 | E190: 范安琪 | F190: 78 | G190: 52 | H190: 否
D191: 20 | E191: 黄益鸿 | F191: 78 | G191: 52 | H191: 否
D192: 22 | E192: 林安琪 | F192: 77.5 | G192: 51.67 | H192: 否
D193: 23 | E193: 杨家涵 | F193: 77 | G193: 51.33 | H193: 否
D194: 24 | E194: 冯莉 | F194: 76 | G194: 50.67 | H194: 否
D195: 25 | E195: 陆瑞祥 | F195: 74.5 | G195: 49.67 | H195: 否
D196: 25 | E196: 连曦 | F196: 74.5 | G196: 49.67 | H196: 否
D197: 27 | E197: 谢芳 | F197: 72 | G197: 48 | H197: 否
D198: 28 | E198: 魏邦泽 | F198: 71 | G198: 47.33 | H198: 否
D199: 29 | E199: 林建 | F199: 69.5 | G199: 46.33 | H199: 否
D200: 30 | E200: 虞阳 | F200: 67.5 | G200: 45 | H200: 否
... 141 more rows
